bitfinex/quotes_SOLUSD_20250830
["timestamp","ask_amount","ask_price","bid_price","bid_amount"]
[1756565901023,4.73561351,200.34,200.3,4.99243078]
[1756565901024,4.44694738,200.32,200.3,4.99243078]
[1756565901197,0.71,200.32,200.3,4.99243078]
[1756565902918,3.7379986,200.31,200.3,4.99243078]
[1756565906115,3.73956206,200.31,200.3,4.99243078]
[1756565906312,4.44956206,200.31,200.29,4.73561351]
[1756565906622,4.44968587,200.3,200.28,4.99300978]
[1756565906809,0.71,200.3,200.28,9.72862329]
[1756565907008,4.73561351,200.33,200.28,9.72862329]
[1756565907009,0.71,200.32,200.28,9.72862329]
[1756565907209,3.73980239,200.31,200.28,9.72862329]
[1756565907432,3.73980239,200.3,200.28,9.72862329]
[1756565907627,0.06,200.35,200.29,4.73561351]
[1756565907928,4.45004977,200.34,200.3,4.73561351]
[1756565908222,4.45004977,200.33,200.3,4.73561351]
[1756565908403,3.74004977,200.32,200.3,4.73561351]
[1756565908614,3.74004977,200.31,200.29,4.73561351]
[1756565908914,0.71,200.33,200.29,4.73561351]
[1756565909116,3.7399662,200.32,200.29,4.73561351]
[1756565909309,0.71,200.32,200.29,4.73561351]
[1756565909499,3.74010268,200.31,200.3,4.99251123]
[1756565912141,0.06,200.35,200.3,4.99251123]
[1756565912142,0.06,200.35,200.3,9.82812474]
[1756565912325,3.74032247,200.34,200.32,4.73561351]
[1756565912531,3.74032247,200.33,200.32,4.73561351]
[1756565912732,3.74032247,200.33,200.31,4.73561351]
[1756565912918,0.68,200.34,200.31,4.73561351]
[1756565913121,3.73979608,200.33,200.32,4.73561351]
[1756565914223,3.73979608,200.33,200.32,9.72762628]
[1756565914933,3.73979608,200.33,200.32,4.99201277]
[1756565916030,3.73979608,200.33,200.32,9.72762628]
[1756565916232,0.06,200.35,200.32,9.72762628]
[1756565916537,3.73787469,200.34,200.33,4.73561351]
[1756565917121,3.73787469,200.34,200.33,9.7273771]
[1756565917329,3.73787469,200.34,200.33,4.99176359]
[1756565918030,4.41787469,200.34,200.33,4.99176359]
[1756565918823,4.41787469,200.34,200.27,205.367875]
[1756565919134,4.41787469,200.33,200.3,4.73561351]
[1756565919311,4.41787469,200.32,200.3,9.72791407]
[1756565919511,0.68,200.32,200.3,9.72791407]
[1756565919720,0.68,200.32,200.3,9.75791407]
[1756565920219,0.68,200.32,200.3,0.03]
[1756565920420,4.41778981,200.31,200.3,0.03]
[1756565925628,9.15340332,200.31,200.3,0.03]
[1756565926042,4.41778981,200.31,200.3,0.03]
[1756565926629,9.15340332,200.31,200.3,0.03]
[1756565927419,14.14566531,200.31,200.27,0.03]
[1756565927620,3.73778981,200.3,200.27,0.03]
[1756565927820,8.47340332,200.29,200.27,0.03]
[1756565928031,8.47340332,200.28,200.27,0.03]
[1756565928427,9.15340332,200.28,200.27,0.03]
[1756565930634,14.1464131,200.28,200.25,0.03]
[1756565930841,4.73561351,200.26,200.25,0.03]
[1756565931236,9.15606329,200.26,200.25,0.03]
[1756565932347,30.42044978,200.26,200.25,0.03]
[1756565933541,4.42044978,200.26,200.25,0.03]
[1756565933741,9.15606329,200.26,200.25,0.03]
[1756565937557,35.15606329,200.26,200.25,0.03]
[1756565939176,5.41561351,200.28,200.25,0.03]
[1756565939465,3.7336022,200.27,200.25,0.03]
[1756565939640,5.41561351,200.28,200.25,0.03]
[1756565939845,3.7333505,200.27,200.25,0.03]
[1756565940065,4.73561351,200.27,200.25,0.03]
[1756565940276,0.68,200.26,200.25,0.03]
[1756565940450,5.41561351,200.27,200.25,0.03]
[1756565941968,0.68,200.27,200.25,0.03]
[1756565942186,5.41561351,200.27,200.25,0.03]
[1756565942548,4.73561351,200.27,200.25,0.03]
[1756565942777,4.73561351,200.28,200.25,0.03]
[1756565943071,5.39561351,200.28,200.25,0.03]
[1756565943283,0.06,200.31,200.26,0.16]
[1756565943487,0.06,200.31,200.3,4.73561351]
[1756565944702,0.06,200.31,200.3,9.72812474]
[1756565945003,0.06,200.31,200.3,4.99251123]
[1756565945282,0.06,200.31,200.27,12.4828015]
[1756565945283,0.06,200.31,200.27,43.93561351]
[1756565945500,0.06,200.31,200.3,4.73561351]
[1756565945851,0.06,200.31,200.3,4.89561351]
[1756565946157,0.06,200.31,200.3,4.73561351]
[1756565946780,0.06,200.31,200.3,9.72812474]
[1756565950086,0.06,200.31,200.3,9.88812474]
[1756565950273,0.06,200.31,200.3,9.72812474]
[1756565952372,0.06,200.31,200.3,9.88812474]
[1756565952683,0.06,200.31,200.3,9.72812474]
[1756565956161,0.06,200.31,200.3,14.62373825]
[1756565957989,0.06,200.31,200.3,14.46373825]
[1756565958193,0.06,200.31,200.3,9.72812474]
[1756565958770,0.06,200.31,200.3,43.91561351]
[1756565958969,0.06,200.31,200.29,4.99276049]
[1756565959171,0.72,200.31,200.3,43.91561351]
[1756565959373,0.06,200.31,200.3,43.91561351]
[1756565959576,0.72,200.31,200.3,43.91561351]
[1756565960769,0.72,200.31,200.3,48.90812474]
[1756565961082,0.06,200.31,200.3,48.90812474]
[1756565961602,0.06,200.31,200.3,11.72957574]
[1756565961770,0.72,200.31,200.3,11.72957574]
[1756565961974,0.72,200.31,200.3,50.90957574]
[1756565962410,0.72,200.31,200.3,39.16]
[1756565962584,0.72,200.31,200.3,43.89561351]
[1756565963097,0.72,200.31,200.3,48.88812474]
[1756565965274,0.72,200.31,200.3,43.89561351]
[1756565967605,0.72,200.31,200.3,4.73561351]
[1756565967905,0.72,200.31,200.3,43.89561351]
[1756565969308,0.72,200.31,200.29,4.73561351]
[1756565969489,0.06,200.31,200.3,39.16]
[1756565969689,0.06,200.31,200.29,4.73561351]
[1756565969895,0.06,200.31,200.3,39.16]
[1756565970600,0.72,200.31,200.29,4.73561351]
[1756565970901,0.72,200.31,200.3,39.16]
[1756565970902,0.06,200.31,200.3,39.16]
[1756565971511,0.74,200.31,200.3,39.16]
[1756565974383,0.06,200.31,200.3,43.89561351]
[1756565975484,0.06,200.31,200.3,48.88812474]
[1756565976211,0.06,200.31,200.3,44.15251123]
[1756565976391,0.06,200.31,200.3,48.88812474]
[1756565977386,3.79432665,200.31,200.3,48.88812474]
[1756565977787,4.47432665,200.31,200.3,48.88812474]
[1756565977984,4.47432665,200.31,200.28,2.001652]
[1756565978192,9.15052655,200.3,200.27,0.03]
[1756565978397,3.73491304,200.29,200.27,0.03]
[1756565978700,5.41561351,200.3,200.27,39.17]
[1756565979011,4.41546855,200.29,200.27,39.17]
[1756565979207,0.68,200.28,200.27,39.17]
[1756565982617,4.41848235,200.28,200.27,39.17]
[1756565982802,3.73848235,200.28,200.27,39.17]
[1756565983198,3.73851174,200.29,200.27,39.17]
[1756565983411,3.73851174,200.28,200.27,39.17]
[1756565983729,4.41851174,200.28,200.27,39.17]
[1756565984995,4.41851174,200.28,200.27,44.1632591]
[1756565985196,3.73851174,200.28,200.27,44.1632591]
[1756565985410,3.73851174,200.28,200.27,48.89887261]
[1756565987816,3.73851174,200.28,200.27,44.1632591]
[1756565988719,4.41851174,200.28,200.27,44.1632591]
[1756565990122,3.73851174,200.28,200.27,44.1632591]
[1756565991895,0.06,200.31,200.27,49.05887261]
[1756565992096,0.06,200.31,200.29,4.73561351]
[1756565992317,0.06,200.31,200.3,39.12]
[1756565993927,0.06,200.31,200.3,44.11251123]
[1756565994515,0.06,200.31,200.3,47.13173714]
[1756565995026,0.06,200.31,200.3,46.11386223]
[1756565995231,3.79997266,200.31,200.3,6.99386223]
[1756565995410,3.79997266,200.31,200.3,4.99251123]
[1756565995616,3.79997266,200.31,200.3,44.11251123]
[1756565996909,0.06,200.31,200.3,44.11251123]
[1756566000164,0.06,200.31,200.3,48.83031956]
[1756566000533,0.06,200.31,200.3,44.11251123]
[1756566000738,0.06,200.31,200.3,49.48957068]
[1756566000933,0.06,200.31,200.3,63.08516469]
[1756566001156,0.06,200.31,200.3,187.08621469]
[1756566001336,0.06,200.31,200.3,266.18696357]
[1756566001871,0.06,200.31,200.3,222.34915524]
[1756566002178,0.77,200.31,200.3,39.1]
[1756566002540,5.48780833,200.31,200.3,39.1]
[1756566002969,5.48780833,200.31,200.27,0.03]
[1756566003264,4.71780833,200.29,200.28,39.1]
[1756566003460,5.42780833,200.29,200.27,0.03]
[1756566003681,26.0,200.26,200.25,0.03]
[1756566003970,30.71780833,200.26,200.25,0.03]
[1756566004258,31.42780833,200.26,200.25,0.03]
[1756566004448,0.71,200.26,200.25,0.03]
[1756566006147,5.42780833,200.26,200.25,0.03]
[1756566008862,0.71,200.26,200.25,0.03]
[1756566009069,5.42780833,200.28,200.25,0.03]
[1756566009248,0.06,200.31,200.27,4.71780833]
[1756566009452,0.06,200.31,200.3,4.71780833]
[1756566009775,0.06,200.31,200.3,43.81780833]
[1756566009957,0.06,200.31,200.3,58.10265346]
[1756566010166,0.06,200.33,200.3,58.10265346]
[1756566010340,0.06,200.33,200.32,4.71780833]
[1756566010963,0.06,200.33,200.32,9.7098211]
[1756566011171,0.06,200.33,200.32,9.8398211]
[1756566011336,0.06,200.33,200.32,9.7098211]
[1756566011541,0.06,200.33,200.32,48.8098211]
[1756566011855,0.77,200.33,200.32,39.1]
[1756566012264,0.77,200.33,200.3,9.71011066]
[1756566012463,0.06,200.33,200.31,4.71780833]
[1756566012656,0.06,200.33,200.32,4.71780833]
[1756566012849,0.06,200.33,200.32,12.34007237]
[1756566013055,1e-08,200.33,200.32,25.93566638]
[1756566013268,0.06,200.35,200.32,25.93566638]
[1756566013269,0.06,200.35,200.33,13.59559401]
[1756566013450,0.06,200.35,200.34,44.31695977]
[1756566013650,0.06,200.36,200.34,44.44695977]
[1756566013847,1e-08,200.36,200.35,18.44340234]
[1756566014068,0.06,200.41,200.38,26.0]
[1756566014380,5.42780833,200.39,200.35,2.00045]
[1756566014552,4.71780833,200.37,200.36,39.1]
[1756566014748,0.71,200.37,200.36,39.1]
[1756566014978,4.44034171,200.37,200.36,39.1]
[1756566015450,3.73034171,200.37,200.36,44.09101617]
[1756566015951,4.44034171,200.37,200.36,39.08]
[1756566016359,9.15815004,200.37,200.33,4.717809]
[1756566016645,9.15815004,200.36,200.34,39.08]
[1756566016882,9.15815004,200.35,200.33,39.08]
[1756566017054,0.71,200.34,200.32,39.08]
[1756566017371,0.71,200.33,200.29,19.72794033]
[1756566017570,0.71,200.32,200.3,39.08]
[1756566017787,0.71,200.31,200.29,15.010132]
[1756566017948,4.71780833,200.32,200.3,39.08]
[1756566018291,4.71780833,200.31,200.28,4.99300492]
[1756566018446,4.71780833,200.33,200.29,39.08]
[1756566018647,3.73010218,200.32,200.29,43.79780833]
[1756566018865,0.71,200.33,200.29,43.79780833]
[1756566019071,3.73010203,200.32,200.29,48.79053402]
[1756566019379,4.44040125,200.31,200.27,43.79780833]
[1756566019566,0.71,200.3,200.26,19.73019433]
[1756566019869,4.44061919,200.29,200.27,39.08]
[1756566020071,0.71,200.29,200.27,39.08]
[1756566021042,0.71,200.32,200.27,44.07314347]
[1756566021247,8.4482205,200.31,200.27,44.07314347]
[1756566021460,3.73041217,200.3,200.27,44.07314347]
[1756566021666,3.73041217,200.29,200.27,44.07314347]
[1756566021973,0.71,200.3,200.28,39.08]
[1756566022271,3.73032267,200.29,200.28,39.08]
[1756566022477,4.44032267,200.29,200.28,39.08]
[1756566022648,9.158131,200.29,200.25,5.02357306]
[1756566022856,9.158131,200.28,200.25,0.03]
[1756566023053,3.73053966,200.27,200.26,39.08]
[1756566023582,4.44053966,200.27,200.26,39.08]
[1756566024288,0.71,200.27,200.26,39.08]
[1756566024652,4.71780833,200.28,200.26,39.08]
[1756566024872,5.42780833,200.28,200.26,39.08]
[1756566025573,5.42780833,200.27,200.25,0.03]
[1756566025777,3.72991863,200.26,200.25,39.11]
[1756566026078,0.71,200.27,200.25,44.1037578]
[1756566027178,0.71,200.27,200.26,0.03]
[1756566027859,5.42780833,200.27,200.26,0.03]
[1756566028383,9.15707913,200.27,200.26,0.03]
[1756566030258,5.42780833,200.27,200.26,0.03]
[1756566031479,4.71780833,200.28,200.26,0.03]
[1756566031874,0.72,200.27,200.26,0.03]
[1756566032080,5.43780833,200.28,200.26,0.03]
[1756566033076,0.72,200.27,200.26,0.03]
[1756566033486,0.72,200.28,200.26,0.03]
[1756566033667,0.72,200.27,200.26,0.03]
[1756566035279,5.43780833,200.27,200.26,0.03]
[1756566036056,9.16452561,200.27,200.26,0.03]
[1756566036262,9.16452561,200.27,200.25,39.11]
[1756566036263,14.15778471,200.27,200.25,0.03]
[1756566036473,8.44452561,200.26,200.25,0.03]
[1756566036886,9.16452561,200.26,200.25,0.03]
[1756566037060,4.44671728,200.26,200.25,0.03]
[1756566037260,9.16452561,200.26,200.25,0.03]
[1756566037692,14.15803404,200.26,200.25,0.03]
[1756566038269,27.75248466,200.26,200.25,0.03]
[1756566040081,9.16338222,200.26,200.25,0.03]
[1756566040659,0.72,200.29,200.25,0.03]
[1756566040864,8.43981865,200.28,200.25,0.03]
[1756566041170,4.71780833,200.27,200.25,0.03]
[1756566041489,5.43780833,200.27,200.25,0.03]
[1756566041676,5.43780833,200.26,200.25,0.03]
[1756566042464,9.15998066,200.26,200.25,0.03]
[1756566043381,4.44217233,200.26,200.25,0.03]
[1756566043583,9.15998066,200.26,200.25,0.03]
[1756566044314,9.15979882,200.26,200.25,0.03]
[1756566044606,14.15330725,200.26,200.25,0.03]
[1756566045779,9.15979882,200.26,200.25,0.03]
[1756566046214,14.15355258,200.26,200.25,0.03]
[1756566048329,4.44223582,200.26,200.25,0.03]
[1756566048502,35.16004415,200.26,200.25,0.03]
[1756566049391,40.15355258,200.26,200.25,0.03]
[1756566050613,30.44223582,200.26,200.25,0.03]
[1756566050918,34.85700962,200.26,200.25,0.03]
[1756566051151,8.85700962,200.26,200.25,0.03]
[1756566052335,3.72223582,200.26,200.25,0.03]
[1756566052509,4.99246827,200.31,200.25,0.03]
[1756566052810,4.71780833,200.29,200.25,0.03]
[1756566053121,3.71963782,200.28,200.25,0.03]
[1756566053407,4.71780833,200.28,200.25,0.03]
[1756566054206,4.71780833,200.27,200.25,0.03]
[1756566055632,5.43780833,200.28,200.25,0.03]
[1756566056513,4.71780833,200.26,200.25,0.03]
[1756566057223,8.43987644,200.26,200.25,0.03]
[1756566057397,5.71302859,200.28,200.25,0.03]
[1756566057605,4.71780833,200.26,200.25,0.03]
[1756566058326,8.44177663,200.26,200.25,0.03]
[1756566058841,4.71780833,200.27,200.25,0.03]
[1756566059014,3.72396792,200.26,200.25,0.03]
[1756566059216,3.72391032,200.26,200.25,0.03]
[1756566060746,3.78391032,200.26,200.25,0.03]
[1756566061433,14.15522708,200.26,200.25,0.03]
[1756566062925,31.95746113,200.26,200.25,0.03]
[1756566063815,27.75082109,200.26,200.24,0.03]
[1756566064016,22.03731266,200.25,200.24,0.03]
[1756566064438,22.69731266,200.25,200.24,0.03]
[1756566065028,27.69107046,200.25,200.24,0.03]
[1756566065231,33.25140794,200.25,200.24,0.03]
[1756566066232,33.26370929,200.25,200.23,0.03]
[1756566066431,13.59559401,200.23,200.22,0.03]
[1756566066627,27.65331266,200.23,200.22,0.03]
[1756566066829,22.70961401,200.23,200.22,0.03]
[1756566067232,28.31331266,200.23,200.22,0.03]
[1756566067431,22.70961401,200.23,200.22,0.03]
[1756566068017,29.70722561,200.23,200.22,0.03]
[1756566068234,44.31340234,200.22,200.21,0.03]
[1756566068420,48.04961401,200.22,200.21,0.03]
[1756566068740,48.70961401,200.22,200.21,0.03]
[1756566070145,53.70412005,200.22,200.12,0.46]
[1756566070331,52.23182833,200.21,200.12,0.46]
[1756566070537,52.23182833,200.21,200.1,79.6]
[1756566070854,26.0,200.18,200.1,80.06]
[1756566071155,4.71780833,200.14,200.09,4.71780833]
[1756566071354,8.45402,200.13,200.08,4.71780833]
[1756566071531,3.73621167,200.12,200.09,0.46]
[1756566071724,4.71780833,200.13,200.09,0.46]
[1756566071930,34.44826207,200.12,200.07,0.46]
[1756566072240,8.44826207,200.11,200.07,0.46]
[1756566072542,3.73045374,200.1,200.07,0.46]
[1756566072723,4.71780833,200.1,200.06,0.2]
[1756566072924,26.0,200.12,200.09,4.71780833]
[1756566073139,69.79780833,200.15,200.1,0.46]
[1756566073443,3.72855315,200.14,200.09,4.71780833]
[1756566073746,3.72855315,200.13,200.1,0.46]
[1756566073943,3.72855315,200.12,200.11,4.71780833]
[1756566074148,39.08,200.18,200.11,0.46]
[1756566074331,4.71780833,200.16,200.11,5.17780833]
[1756566074534,3.72711101,200.15,200.12,5.17780833]
[1756566074846,3.72711101,200.14,200.12,5.17780833]
[1756566075053,4.71780833,200.17,200.12,5.17780833]
[1756566075247,3.72631273,200.16,200.13,5.17780833]
[1756566075450,2.61085453,200.23,200.15,4.71780833]
[1756566075649,3.72497122,200.22,200.14,39.08]
[1756566075856,5.43780833,200.26,200.16,0.46]
[1756566076153,8.44187987,200.25,200.2,4.71780833]
[1756566076462,8.44187987,200.24,200.19,4.71780833]
[1756566076639,5.37780833,200.24,200.19,5.17780833]
[1756566076826,3.7244997,200.23,200.19,5.17780833]
[1756566077025,5.37780833,200.24,200.19,5.17780833]
[1756566077223,3.72448011,200.23,200.2,5.17780833]
[1756566077453,0.06,200.26,200.22,4.71780833]
[1756566077654,0.06,200.26,200.23,5.17780833]
[1756566078040,0.06,200.26,200.24,4.71780833]
[1756566078752,0.06,200.26,200.25,5.17780833]
[1756566080426,0.06,200.26,200.23,4.99411515]
[1756566080427,0.06,200.26,200.24,4.71780833]
[1756566080827,0.06,200.26,200.23,4.99411515]
[1756566081047,0.06,200.26,200.24,4.71780833]
[1756566081654,0.06,200.26,200.25,4.71780833]
[1756566082149,0.06,200.26,200.24,0.46]
[1756566082347,0.06,200.26,200.24,10.17180702]
[1756566083056,0.06,200.26,200.25,4.71780833]
[1756566085739,0.06,200.26,200.25,23.76716014]
[1756566086151,0.06,200.29,200.28,44.31340234]
[1756566086453,0.06,200.29,200.26,0.46]
[1756566086955,0.06,200.29,200.28,4.71780833]
[1756566087340,0.06,200.29,200.28,44.77340234]
[1756566087553,0.06,200.29,200.28,49.76641212]
[1756566088925,0.06,200.29,200.28,171.76641212]
[1756566090452,0.06,200.29,200.28,167.04860379]
[1756566090659,0.06,200.29,200.28,171.76641212]
[1756566092157,0.06,200.29,200.28,49.76641212]
[1756566092530,0.06,200.29,200.28,45.04860379]
[1756566092731,0.06,200.29,200.28,88.80641212]
[1756566093836,0.06,200.29,200.28,88.34641212]
[1756566094238,0.06,200.29,200.28,9.71081811]
[1756566094439,0.06,200.29,200.28,44.03300978]
[1756566095655,0.06,200.29,200.28,39.04]
[1756566096743,0.06,200.29,200.28,123.63300978]
[1756566097948,0.06,200.29,200.28,137.68860379]
[1756566098681,0.06,200.29,200.28,98.18860379]
[1756566098850,0.06,200.29,200.28,137.22860379]
[1756566099564,0.06,200.29,200.28,84.59300978]
[1756566099883,0.06,200.29,200.28,123.63300978]
[1756566100074,0.06,200.29,200.28,79.6]
[1756566100271,0.74,200.29,200.28,118.64]
[1756566100693,0.06,200.29,200.28,118.64]
[1756566102184,0.74,200.29,200.28,118.64]
[1756566102553,0.06,200.29,200.28,124.09300978]
[1756566102749,0.06,200.29,200.28,123.63300978]
[1756566102981,0.06,200.29,200.28,123.61300978]
[1756566103688,0.06,200.29,200.28,84.59300978]
[1756566103983,0.06,200.29,200.28,44.01300978]
[1756566104186,0.06,200.29,200.28,58.06860379]
[1756566104490,0.06,200.29,200.28,4.99300978]
[1756566104795,0.74,200.29,200.28,44.01300978]
[1756566105299,0.74,200.29,200.26,79.63]
[1756566105459,0.68,200.28,200.26,0.03]
[1756566105859,0.06,200.29,200.26,39.05]
[1756566106071,0.68,200.27,200.26,39.05]
[1756566107584,0.06,200.29,200.26,44.50347703]
[1756566107891,0.06,200.29,200.26,44.04347703]
[1756566108571,0.06,200.29,200.26,44.50347703]
[1756566109083,0.06,200.29,200.28,4.99300978]
[1756566109282,0.06,200.29,200.28,44.01300978]
[1756566114921,0.06,200.29,200.27,4.9932591]
[1756566115207,0.68,200.28,200.26,5.02346272]
[1756566115385,0.06,200.29,200.27,39.02]
[1756566115589,0.06,200.29,200.26,5.02346272]
[1756566115785,0.06,200.29,200.26,0.03]
[1756566115982,0.68,200.28,200.27,39.02]
[1756566118507,0.68,200.28,200.27,44.0132591]
[1756566118908,0.06,200.29,200.27,44.0132591]
[1756566119290,0.06,200.29,200.27,44.4732591]
[1756566119491,0.06,200.29,200.27,44.0132591]
[1756566120405,0.06,200.29,200.28,14.55489498]
[1756566120606,0.06,200.29,200.28,19.54790476]
[1756566120911,0.06,200.29,200.28,19.08790476]
[1756566121224,0.06,200.29,200.28,44.01300978]
[1756566121992,0.06,200.29,200.27,4.99321029]
[1756566122197,0.76,200.29,200.28,39.02]
[1756566122399,4.49323339,200.29,200.28,39.02]
[1756566125825,4.49323339,200.29,200.28,44.01300978]
[1756566126001,4.49323339,200.29,200.28,4.99300978]
[1756566126201,4.49323339,200.29,200.28,44.01300978]
[1756566126723,4.49323339,200.29,200.28,44.47300978]
[1756566126724,3.79323339,200.29,200.28,44.47300978]
[1756566127203,0.06,200.29,200.28,137.66860379]
[1756566127607,0.06,200.29,200.28,139.66985479]
[1756566128326,0.06,200.29,200.28,137.66860379]
[1756566128623,0.06,200.29,200.28,165.66985379]
[1756566129719,1e-08,200.29,200.28,139.66985379]
[1756566130629,1e-08,200.29,200.28,261.66985379]
[1756566131424,1e-08,200.29,200.28,222.18985379]
[1756566131606,1e-08,200.29,200.28,206.59300978]
[1756566131805,1e-08,200.29,200.28,123.59300978]
[1756566132125,1e-08,200.29,200.28,84.59300978]
[1756566132329,1e-08,200.29,200.28,123.59300978]
[1756566134522,1e-08,200.29,200.28,137.18860379]
[1756566134836,1e-08,200.29,200.28,84.59300978]
[1756566135033,0.70000001,200.29,200.28,84.59300978]
[1756566135234,0.70000001,200.29,200.26,2.031351]
[1756566135424,4.4394789,200.28,200.27,39.0]
[1756566136612,4.4394789,200.28,200.26,79.63]
[1756566136841,4.4394789,200.27,200.26,0.03]
[1756566137025,4.4394789,200.27,200.26,39.03]
[1756566138330,4.4394789,200.27,200.26,0.03]
[1756566139046,9.432738,200.27,200.26,0.03]
[1756566139628,13.63707261,200.27,200.26,0.03]
[1756566140430,9.432738,200.27,200.26,0.03]
[1756566140622,13.63707261,200.27,200.26,0.03]
[1756566141345,9.432738,200.27,200.26,0.03]
[1756566142033,27.23266662,200.27,200.26,0.03]
[1756566142232,27.22895344,200.27,200.26,0.03]
[1756566142548,27.22877101,200.27,200.26,0.03]
[1756566143047,4.43558329,200.27,200.26,0.03]
[1756566143225,4.43388493,200.27,200.26,0.03]
[1756566144436,3.73388493,200.27,200.26,0.03]
[1756566144633,4.43388493,200.27,200.26,0.03]
[1756566145943,4.43203925,200.27,200.26,0.03]
[1756566148562,9.42529835,200.27,200.26,0.03]
[1756566148861,4.43203925,200.27,200.26,0.03]
[1756566149641,3.73203925,200.27,200.26,0.03]
[1756566149946,1e-08,200.29,200.26,0.03]
[1756566150153,3.73086827,200.28,200.26,0.03]
[1756566150339,0.70000001,200.29,200.26,0.03]
[1756566150540,3.73089655,200.28,200.26,0.03]
[1756566150752,1e-08,200.29,200.26,0.03]
[1756566150956,3.73089694,200.28,200.26,0.03]
[1756566151254,1e-08,200.29,200.26,0.03]
[1756566151457,3.73091329,200.28,200.26,0.03]
[1756566151641,0.72000001,200.29,200.26,0.03]
[1756566151841,3.73091368,200.28,200.26,0.03]
[1756566152048,0.72,200.28,200.26,0.03]
[1756566152952,1e-08,200.29,200.26,0.49]
[1756566153940,1e-08,200.29,200.28,4.99300978]
[1756566157553,1e-08,200.29,200.27,4.9932591]
[1756566158455,0.72,200.28,200.26,118.63]
[1756566158654,1e-08,200.29,200.26,118.63]
[1756566158855,0.72000001,200.29,200.26,118.63]
[1756566159163,0.72000001,200.29,200.26,39.03]
[1756566159457,0.72,200.28,200.26,0.03]
[1756566159657,3.7317469,200.27,200.26,0.03]
[1756566159879,4.4517469,200.27,200.26,0.03]
[1756566160860,3.7317469,200.27,200.26,0.03]
[1756566161035,1e-08,200.29,200.26,0.03]
[1756566161249,1e-08,200.29,200.27,39.46]
[1756566161552,1e-08,200.29,200.28,18.58860379]
[1756566161753,1e-08,200.29,200.28,58.04860379]
[1756566161960,1e-08,200.29,200.28,60.04995479]
[1756566166748,1e-08,200.29,200.28,59.58995479]
[1756566167267,1e-08,200.29,200.28,6.99436078]
[1756566167484,0.72000001,200.29,200.28,43.99300978]
[1756566167847,0.72000001,200.29,200.28,4.99300978]
[1756566168048,1e-08,200.29,200.28,43.99300978]
[1756566168249,0.72000001,200.29,200.28,43.99300978]
[1756566168681,1e-08,200.29,200.28,43.99300978]
[1756566170577,1e-08,200.29,200.28,39.0]
[1756566171476,0.72000001,200.29,200.28,39.0]
[1756566172457,1e-08,200.29,200.28,39.0]
[1756566172663,1e-08,200.29,200.28,43.99300978]
[1756566173481,0.72000001,200.29,200.28,43.99300978]
[1756566173673,0.72000001,200.29,200.28,4.99300978]
[1756566173865,0.72000001,200.29,200.28,43.99300978]
[1756566174255,1e-08,200.29,200.28,43.99300978]
[1756566174570,0.72000001,200.29,200.28,43.99300978]
[1756566175356,0.72000001,200.29,200.28,4.99300978]
[1756566175666,0.72000001,200.29,200.28,43.99300978]
[1756566178480,1e-08,200.29,200.28,43.99300978]
[1756566179991,1e-08,200.29,200.28,58.07860379]
[1756566180194,1e-08,200.31,200.28,139.67985479]
[1756566180376,1e-08,200.31,200.3,39.59559401]
[1756566180574,1e-08,200.31,200.3,78.57559401]
[1756566180792,1e-08,200.31,200.3,79.03559401]
[1756566180982,0.06,200.34,200.31,13.59559401]
[1756566181298,0.06,200.34,200.32,40.98095]
[1756566181494,0.06,200.34,200.33,4.99176359]
[1756566182705,0.73,200.34,200.33,4.99176359]
[1756566183502,0.06,200.34,200.33,4.99176359]
[1756566185120,0.73,200.34,200.33,4.99176359]
[1756566186314,0.73,200.34,200.33,38.98]